fUSD/lending_fUSD_20240612
["ID","MTS","AMOUNT","RATE_DAILY","PERIOD"]
[329204157,1718179120446,-612.47,0.00038356,90]
[329204158,1718179120478,-612.47,0.00038356,90]
[329204159,1718179120541,-612.47,0.00038356,90]
[329204160,1718179120582,-612.47,0.00038356,90]
[329204161,1718179120624,-612.47,0.00038356,90]
[329204162,1718179120659,-612.47,0.00038356,90]
[329204163,1718179120688,-612.47,0.00038356,90]
[329204164,1718179120733,-612.47,0.00038356,90]
[329204165,1718179120772,-612.47,0.00038356,90]
[329204166,1718179120810,-612.47,0.00038356,90]
[329204167,1718179120846,-612.47,0.00038356,90]
[329204168,1718179120896,-612.47,0.00038356,90]
[329204169,1718179120951,-612.49,0.00038356,90]
[329204170,1718179121008,-800.0,0.00038356,100]
[329204171,1718179121046,-800.0,0.00038356,100]
[329204172,1718179121081,-800.0,0.00038356,100]
[329204173,1718179121130,-800.0,0.00038356,100]
[329204174,1718179121189,-800.0,0.00038356,100]
[329204175,1718179121230,-800.0,0.00038356,100]
[329204176,1718179121274,-800.0,0.00038356,100]
[329204177,1718179121305,-800.0,0.00038356,100]
[329204178,1718179121338,-152.84056602,0.00038356,100]
[329204179,1718179121374,-2000.0,0.00038356,60]
[329204180,1718179121415,-2000.0,0.00038356,60]
[329204181,1718179121450,-2000.0,0.00038356,60]
[329204182,1718179121489,-2000.0,0.00038356,60]
[329204183,1718179121557,-2000.0,0.00038356,60]
[329204184,1718179121598,-2000.0,0.00038356,60]
[329204185,1718179121630,-2000.0,0.00038356,60]
[329204186,1718179121668,-2000.0,0.00038356,60]
[329204187,1718179121709,-2000.0,0.00038356,60]
[329204188,1718179121748,-2000.0,0.00038356,60]
[329204189,1718179121783,-2000.0,0.00038356,60]
[329204190,1718179121814,-2000.0,0.00038356,60]
[329204191,1718179121846,-2000.0,0.00038356,60]
[329204192,1718179121878,-2000.0,0.00038356,60]
[329204193,1718179121910,-2000.0,0.00038356,60]
[329204194,1718179121942,-2000.0,0.00038356,60]
[329204195,1718179121972,-2000.0,0.00038356,60]
[329204196,1718179122003,-2000.0,0.00038356,60]
[329204197,1718179122036,-335.8781416,0.00038356,60]
[329204198,1718179122068,-1883.00195265,0.000384,33]
[329204199,1718179122106,-677.60019557,0.000384,120]
[329204200,1718179122163,-150.0,0.00038518,120]
[329204201,1718179122199,-450.0,0.0003874,30]
[329204202,1718179122263,-819.0,0.00038773,30]
[329204203,1718179122309,-8823.4114908,0.000389,30]
[329204204,1718179122355,-1523.93462098,0.000389,30]
[329204205,1718179122405,-746.64767626,0.00039,120]
[329204206,1718179122440,-1050.0,0.00039,120]
[329204207,1718179122476,-1002.0,0.00039,120]
[329204208,1718179122545,-199.99999901,0.00039,30]
[329204209,1718179122585,-865.76419956,0.00039,30]
[329204210,1718179122631,-500000.00000001,0.00039,120]
[329204211,1718179122682,-2000.0,0.00039,30]
[329204212,1718179122737,-6786.43791884,0.00039,120]
[329204213,1718179122797,-229378.74672267,0.00039,60]
[329204214,1718179122857,-11979.74776359,0.00039,120]
[329204215,1718179122913,-740.0,0.00039,120]
[329204216,1718179122970,-217629.92326366,0.00039048,120]
[329204217,1718179123052,-565.58487859,0.000394,30]
[329204218,1718179123105,-153288.64886619,0.000394,30]
[329204219,1718179123168,-243.41093715,0.000395,120]
[329204220,1718179123232,-282.35081562,0.000395,30]
[329204221,1718179123542,-15069.1075913,0.0003978,30]
[329204222,1718179123578,-361.58434085,0.00039798,120]
[329204223,1718179123626,-2593.27189807,0.00039798,44]
[329204224,1718179123679,-1136.35134472,0.000398,120]
[329204225,1718179123731,-31281.15147143,0.000398,120]
[329204226,1718179123769,-158815.0,0.000398,30]
[329204227,1718179123825,-2631.6679932,0.000398,120]
[329204228,1718179123869,-150.83229374,0.0003985,30]
[329204229,1718179123904,-734431.82806882,0.00039853,45]
[329204230,1718179123940,-401.38504386,0.00039867,45]
[329204231,1718179123985,-548082.46462743,0.00039873,45]
[329204232,1718179129439,-2000.0,0.00033425,30]
[329204233,1718179129483,-186349.36344139,0.00039873,45]
[329204234,1718179129527,-3499.99999896,0.00039876,31]
[329204235,1718179129576,-401.38504386,0.00039894,45]
[329204236,1718179129611,-3133.38057497,0.000399,30]
[329204237,1718179129649,-734431.82806882,0.00039905,45]
[329204238,1718179129681,-401.38504386,0.00039918,45]
[329204239,1718179129714,-667.00264322,0.0003998,30]
[329204240,1718179129750,-50000.0,0.0004,30]
[329204241,1718179129788,-520.10010706,0.0004,60]
[329204242,1718179129816,-2500.0,0.0004,120]
[329204243,1718179129847,-2500.0,0.0004,120]
[329204244,1718179129878,-2500.0,0.0004,120]
[329204245,1718179129907,-2500.0,0.0004,120]
[329204246,1718179129936,-2500.0,0.0004,120]
[329204247,1718179129966,-2500.0,0.0004,120]
[329204248,1718179129995,-2500.0,0.0004,120]
[329204249,1718179130029,-2500.0,0.0004,120]
[329204250,1718179130059,-2500.0,0.0004,120]
[329204251,1718179130088,-2500.0,0.0004,120]
[329204252,1718179130118,-2500.0,0.0004,120]
[329204253,1718179130151,-2500.0,0.0004,120]
[329204254,1718179130179,-1470.45842409,0.0004,30]
[329204255,1718179130210,-299.39215974,0.0004,30]
[329204256,1718179130238,-161.94096558,0.0004,30]
[329204257,1718179130267,-1321.22289855,0.0004,30]
[329204258,1718179130299,-609.29728472,0.0004,30]
[329204259,1718179130332,-1020.41039104,0.0004,120]
[329204260,1718179130363,-717.06634517,0.0004,120]
[329204261,1718179130394,-1040.96362039,0.0004,32]
[329204262,1718179130422,-218.11086445,0.0004,120]
[329204263,1718179130449,-803.49606793,0.0004,60]
[329204264,1718179130477,-5375.15511354,0.0004,60]
[329204265,1718179130507,-3048.0,0.0004,30]
[329204266,1718179130559,-500.0,0.0004,120]
[329204267,1718179130589,-500.0,0.0004,120]
[329204268,1718179130628,-500.0,0.0004,120]
[329204269,1718179130662,-500.0,0.0004,120]
[329204270,1718179130696,-500.0,0.0004,120]
[329204271,1718179130730,-500.0,0.0004,120]
[329204272,1718179130762,-260.59,0.0004,120]
[329204273,1718179130794,-500.0,0.0004,120]
[329204274,1718179130824,-2000.0,0.0004,30]
[329204275,1718179130856,-10000.0,0.0004,90]
[329204276,1718179130886,-672.0,0.0004,60]
[329204277,1718179130920,-200.0,0.0004,120]
[329204278,1718179130949,-10000.0,0.0004,30]
[329204279,1718179130980,-365.0,0.0004,60]
[329204280,1718179131010,-523.0,0.0004,120]
[329204281,1718179131043,-30036.38900925,0.0004,30]
[329204282,1718179131074,-5212.2535426,0.0004,120]
[329204283,1718179131104,-2239.26,0.0004,32]
[329204284,1718179131135,-1800.0,0.0004,120]
[329204285,1718179131166,-2283.04036405,0.0004,120]
[329204286,1718179131199,-163.8553934,0.0004,120]
[329204287,1718179131229,-2509.0,0.0004,120]
[329204288,1718179131483,-19980.0,0.0004,30]
[329204289,1718179131515,-111572.31,0.0004,30]
[329204290,1718179131563,-5000.0,0.0004,30]
[329204291,1718179131594,-384.34,0.0004,120]
[329204292,1718179131625,-352.96,0.0004,120]
[329204293,1718179131658,-591.87680584,0.0004001,30]
[329204294,1718179131691,-150.0,0.00040082,120]
[329204295,1718179131722,-706.32670896,0.000401,120]
[329204296,1718179131754,-150.0,0.00040112,120]
[329204297,1718179131784,-6000.0,0.00040189,60]
[329204298,1718179131814,-2000.0,0.00040192,30]
[329204299,1718179131847,-295350.46412079,0.000402,30]
[329204300,1718179131877,-487.12506804,0.000402,30]
[329204301,1718179131910,-500.0,0.000402,120]
[329204302,1718179131941,-434.44012979,0.000402,30]
[329204303,1718179131972,-290.70886335,0.000402,120]
[329204304,1718179132002,-562.0,0.000402,30]
[329204305,1718179132036,-1000.0,0.000403,120]
[329204306,1718179132067,-1000.0,0.000403,120]
[329204307,1718179132108,-1000.0,0.000403,120]
[329204308,1718179132141,-1000.0,0.000403,120]
[329204309,1718179132175,-1000.0,0.000403,120]
[329204310,1718179132210,-1000.0,0.000403,120]
[329204311,1718179132242,-1000.0,0.000403,120]
[329204312,1718179132276,-1000.0,0.000403,120]
[329204313,1718179132308,-1000.0,0.000403,120]
[329204314,1718179132344,-674.27,0.000403,120]
[329204315,1718179132375,-1000.0,0.000404,120]
[329204316,1718179132404,-202.0,0.00040469,30]
[329204317,1718179132435,-723.83,0.00040547,90]
[329204318,1718179132466,-723.83,0.00040547,90]
[329204319,1718179132497,-723.83,0.00040547,90]
[329204320,1718179132534,-723.83,0.00040547,90]
[329204321,1718179132566,-723.83,0.00040547,90]
[329204322,1718179132603,-723.83,0.00040547,90]
[329204323,1718179132638,-723.83,0.00040547,90]
[329204324,1718179132670,-723.83,0.00040547,90]
[329204325,1718179132701,-723.83,0.00040547,90]
[329204326,1718179132736,-723.83,0.00040547,90]
[329204327,1718179132768,-723.83,0.00040547,90]
[329204328,1718179132804,-723.83,0.00040547,90]
[329204329,1718179132837,-723.83,0.00040547,90]
[329204330,1718179132867,-723.83,0.00040547,90]
[329204331,1718179132901,-723.83,0.00040547,90]
[329204332,1718179132934,-723.83,0.00040547,90]
[329204333,1718179132966,-723.83,0.00040547,90]
[329204334,1718179132999,-723.83,0.00040547,90]
[329204335,1718179133043,-723.83,0.00040547,90]
[329204336,1718179133078,-723.83,0.00040547,90]
[329204337,1718179133110,-723.83,0.00040547,90]
[329204338,1718179133148,-723.83,0.00040547,90]
[329204339,1718179133181,-723.83,0.00040547,90]
[329204340,1718179133216,-724.0115101,0.00040547,90]
[329204341,1718179133248,-1000.0,0.000408,120]
[329204342,1718179133281,-1000.0,0.000408,120]
[329204343,1718179133311,-1000.0,0.000408,120]
[329204344,1718179133342,-1000.0,0.000408,120]
[329204345,1718179133372,-1119.67,0.000408,120]
[329204346,1718179133402,-1003.72,0.000408,120]
[329204347,1718179133433,-3283.46842,0.000409,30]
[329204348,1718179133472,-3355.80844277,0.000409,120]
[329204349,1718179133506,-152.06602455,0.000409,120]
[329204350,1718179133577,-152.06602453,0.000409,120]
[329204351,1718179133615,-152.06602453,0.000409,120]
[329204352,1718179133676,-152.06602453,0.000409,120]
[329204353,1718179133719,-152.06602453,0.000409,120]
[329204354,1718179133757,-152.06602453,0.000409,120]
[329204355,1718179133795,-152.06602453,0.000409,120]
[329204356,1718179133829,-152.06602453,0.000409,120]
[329204357,1718179133864,-152.06602453,0.000409,120]
[329204358,1718179133900,-152.06602453,0.000409,120]
[329204359,1718179133944,-50000.0,0.00041,31]
[329204360,1718179133976,-2459.82523735,0.00041,30]
[329204361,1718179134006,-554.82455402,0.00041,60]
[329204362,1718179134040,-119302.62542954,0.00041,30]
[329204363,1718179134070,-950.0,0.00041,120]
[329204364,1718179134099,-417606.77621964,0.00041,30]
[329204365,1718179134130,-2000.0,0.00041,30]
[329204366,1718179134161,-3188.0,0.00041,60]
[329204367,1718179134193,-10000.0,0.00041,30]
[329204368,1718179134225,-14000.0,0.00041,45]
[329204369,1718179134258,-26500.0,0.00041,120]
[329204370,1718179134291,-15160.42196493,0.00041,60]
[329204371,1718179134322,-1026.0,0.00041,90]
[329204372,1718179134359,-3026.0,0.00041,30]
[329204373,1718179134402,-30213.68282867,0.00041,30]
[329204374,1718179134438,-13000.0,0.00041,120]
[329204375,1718179134484,-13000.0,0.00041,120]
[329204376,1718179134546,-151.324459,0.00041,43]
[329204377,1718179134582,-1308.91007751,0.00041058,120]
[329204378,1718179134623,-510.0,0.00041095,120]
[329204379,1718179134659,-151.97,0.00041096,30]
[329204380,1718179135987,434.96890146,0.0003,30]
[329204381,1718179136390,150.0,0.00040547,30]
[329204382,1718179137298,1401.59777208,0.00032,60]
[329204383,1718179137562,269.187,0.00040274,30]
[329204384,1718179144744,150.0,0.00040274,30]
[329204385,1718179146453,493.26320034,0.0004001,30]
[329204388,1718179362789,163.4,0.0001157,2]
[329204392,1718179428106,9308.23973097,0.0001157,2]
[329204393,1718179435360,214.23169842,0.0001157,2]
[329204395,1718179536044,155.0,0.0001157,2]
[329204396,1718179536254,161.1247158,0.0001157,2]
[329204397,1718179536471,2476.19303746,0.0001157,2]
[329204398,1718179561729,410.8496191,0.0001157,2]
[329204399,1718179575684,410.8496191,0.0001157,2]
[329204400,1718179597675,377.69290865,0.0001157,2]
[329204402,1718179642218,-5521.16826175,0.00012235,2]
[329204403,1718179642253,-518.95648126,0.00012335,2]
[329204404,1718179642280,-1563.73491305,0.00012336,2]
[329204433,1718179752110,-522.77803504,0.00012231,2]
[329204434,1718179752140,-3067.01080739,0.00012232,2]
[329204435,1718179752166,-231.26381335,0.00012336,2]
[329204436,1718179752194,-669.59,0.00012338,2]
[329204437,1718179752228,-387.83453056,0.00012458,2]
[329204439,1718179833321,-65.66201678,0.00012458,2]
[329204441,1718179833333,-3327.789243,0.00013648,2]
[329204442,1718179833344,-250.0,0.00013717,2]
[329204443,1718179833355,-150.0,0.00013899,2]
[329204444,1718179833366,-300.0,0.00013899,2]
[329204445,1718179833376,-3045.9508,0.000139,2]
[329204446,1718179833386,-484.4091,0.000139,2]
[329204447,1718179833396,-3783.9453,0.000139,2]
[329204448,1718179833409,-30562.6343,0.000139,2]
[329204449,1718179833428,-1452.19574913,0.0001395,2]
[329204450,1718179833443,-327.00031382,0.0001395,2]
[329204451,1718179833465,-333.98930856,0.00013998,2]
[329204452,1718179833489,-238.21449077,0.00013998,2]
[329204453,1718179833499,-163.30089533,0.00013998,2]
[329204454,1718179833510,-1277.25177394,0.00013998,2]
[329204455,1718179833522,-345.57209114,0.00013998,2]
[329204456,1718179833537,-1474.68141437,0.00013998,2]
[329204457,1718179833553,-162.48446622,0.00013998,2]
[329204458,1718179833569,-407.62260723,0.00013998,2]
[329204459,1718179833580,-2542.43441576,0.00013998,2]
[329204460,1718179833596,-806.25723157,0.00013998,2]
[329204461,1718179833622,-718.98943569,0.00013998,2]
[329204462,1718179833644,-488.83889264,0.00013998,2]
[329204463,1718179833670,-525.24750184,0.00013998,2]
[329204464,1718179833690,-481.22872936,0.00013998,2]
[329204465,1718179833705,-3019.89366035,0.00013998,2]
[329204466,1718179833731,-3709.20765049,0.00013998,2]
[329204467,1718179833745,-404.17084725,0.00013998,2]
[329204468,1718179833762,-531.15011943,0.00013998,2]
[329204469,1718179833786,-1639.02162316,0.00013998,2]
[329204470,1718179833817,-155.0,0.00013998,2]
[329204471,1718179833838,-715.98008293,0.00013998,2]
[329204472,1718179833857,-364.20577069,0.00013998,2]
[329204473,1718179833871,-509.00427352,0.00013998,2]
[329204474,1718179833886,-603.77,0.00013998,2]
[329204475,1718179833912,-3080.11557095,0.00013998,2]
[329204476,1718179833924,-198.94874514,0.00013998,2]
[329204477,1718179833936,-359.73994657,0.00013999,2]
[329204478,1718179833950,-2196.2103099,0.00013999,2]
[329204479,1718179833985,-150482.77012402,0.00014,2]
[329204480,1718179833997,-363.88574453,0.00014,2]
[329204481,1718179834008,-376000.6625162,0.00014,2]
[329204482,1718179834021,-499.99,0.00014,2]
[329204483,1718179834052,-1846.51212,0.0001405,2]
[329204484,1718179834065,-196.96,0.0001405,2]
[329204485,1718179834103,-1846.51212,0.0001436,2]
[329204486,1718179834134,-215.88,0.00014364,2]
[329204487,1718179834144,-200.0,0.00014443,2]
[329204488,1718179834157,-200.0,0.00014485,2]
[329204489,1718179834168,-250.0,0.00014485,2]
[329204490,1718179834179,-163.63,0.000145,2]
[329204491,1718179834190,-150.0,0.000145,2]
[329204492,1718179834222,-150.0,0.000145,2]
[329204493,1718179834234,-526.55,0.000145,2]
[329204494,1718179834247,-164.25,0.000145,2]
[329204495,1718179834260,-192.63,0.00014548,2]
[329204496,1718179834274,-669.59,0.00014602,2]
[329204497,1718179834286,-533.39,0.0001462,2]
[329204498,1718179834297,-1846.51212,0.0001467,2]
[329204499,1718179834308,-166.23,0.0001471,2]
[329204500,1718179834319,-23900.0,0.00014776,2]
[329204501,1718179834329,-179.38098978,0.000149,2]
[329204502,1718179834344,-188.80861575,0.000149,2]
[329204503,1718179834356,-26088.96205661,0.000149,2]
[329204504,1718179834374,-164.51180693,0.000149,2]
[329204505,1718179834399,-1452.19574907,0.00014926,2]
[329204506,1718179834421,-1846.51212,0.0001498,2]
[329204507,1718179834443,-152.89,0.0001499,2]
[329204508,1718179834454,-2487.18140371,0.00015,2]
[329204509,1718179834479,-4220.14599787,0.00015,2]
[329204510,1718179834500,-476146.85091706,0.00015,2]
[329204511,1718179834627,-999.71364344,0.00015,2]
[329204522,1718179834802,-47419.89150547,0.00015,2]
[329204525,1718179834820,-351.56071379,0.00015,2]
[329204526,1718179834833,-457.29170079,0.00015,2]
[329204528,1718179834855,-872.51976406,0.00015,2]
[329204531,1718179834878,-422.28129715,0.00015,2]
[329204594,1718179842846,-796.44791203,0.00015,2]
[329204595,1718179843233,-26.07699144,0.00015,2]
[329204596,1718179843597,-542.70878457,0.00015,2]
[329204597,1718179843613,-27061.91594018,0.00015,2]
[329204598,1718179843628,-841.31146831,0.00015,2]
[329204599,1718179843645,-151.08,0.00015085,2]
[329204600,1718179843671,-1846.51212,0.000153,2]
[329204601,1718179843691,-1000.0,0.00015424,2]
[329204602,1718179843727,-897.6660486,0.00015615,2]
[329204603,1718179843750,-1570.0,0.000158,2]
[329204604,1718179843766,-10227.98735571,0.00015809,2]
[329204605,1718179843817,-2875.82477649,0.00015809,2]
[329204606,1718179843841,-635.74,0.00015809,2]
[329204607,1718179843858,-1396.74061934,0.00015809,2]
[329204608,1718179843884,-467.31889,0.00015809,2]
[329204710,1718179846098,-10485.35041502,0.00015809,2]
[329204712,1718179846123,-152.89,0.00015821,2]
[329204714,1718179846137,-167.0,0.00015831,2]
[329204716,1718179846178,-167.2,0.00015831,2]
[329204718,1718179846202,-560.0,0.000159,2]
[329204720,1718179846217,-1452.19574907,0.00015901,2]
[329204722,1718179846235,-200.0,0.00016296,2]
[329204725,1718179846269,-327.00031382,0.0001654,2]
[329204727,1718179846283,-1287.667,0.0001659,2]
[329204728,1718179846294,-164.51180693,0.0001665,2]
[329204731,1718179846306,-26088.96205656,0.00016718,2]
[329204733,1718179846318,-154.711,0.00016744,2]
[329204734,1718179846329,-264.847,0.00016744,2]
[329204736,1718179846340,-150.0,0.00016744,2]
[329204738,1718179846355,-152.59,0.00016744,2]
[329204740,1718179846378,-200.0,0.00016744,2]
[329204742,1718179846395,-150.22,0.00016744,2]
[329204744,1718179846407,-1977.0,0.00016744,2]
[329204745,1718179846421,-669.59,0.00016866,2]
[329204746,1718179846440,-1452.19574907,0.00016877,2]
[329204747,1718179846460,-1000.0,0.00017138,2]
[329204748,1718179846472,-1000.0,0.000173,2]
[329204749,1718179846506,-533.39,0.0001736,2]
[329204750,1718179846518,-192.63,0.00017458,2]
[329204751,1718179846531,-26088.96205656,0.00017627,2]
[329204752,1718179846542,-1452.19574907,0.00017853,2]
[329204753,1718179846553,-1063.74314363,0.0001797,2]
[329204754,1718179846567,-157.2,0.00018043,2]
[329204755,1718179846578,-200.0,0.00018106,2]
[329204758,1718179846598,-3724.806,0.00018267,2]
[329204759,1718179846612,-3665.412,0.0001836,2]
[329204762,1718179846626,-164.51180693,0.000184,2]
[329204764,1718179846637,-3696.633,0.00018468,2]
[329204766,1718179846652,-26088.96205656,0.00018536,2]
[329204768,1718179846668,-157.2,0.00018557,2]
[329204770,1718179846684,-3665.291,0.00018596,2]
[329204772,1718179846695,-3668.404,0.00018687,2]
[329204774,1718179846705,-600.0,0.00018719,2]
[329204776,1718179846717,-167.582,0.0001874,2]
[329204777,1718179846736,-167.582,0.0001874,2]
[329204779,1718179846749,-167.582,0.0001874,2]
[329204781,1718179846764,-1452.19574907,0.00018829,2]
[329204784,1718179846817,-1000.0,0.00018851,2]
[329204786,1718179846829,-3600.656,0.00018946,2]
[329204788,1718179846846,-13527.35306723,0.00019,2]
[329204790,1718179846859,-3690.671,0.00019039,2]
[329204791,1718179846879,-157.2,0.00019071,2]
[329204794,1718179846893,-10000.0,0.00019078,2]
[329204796,1718179846920,-1000.0,0.00019078,2]
[329204797,1718179846933,-6616.0,0.000191,2]
[329204800,1718179846961,-669.59,0.0001913,2]
[329204802,1718179846972,-327.00031382,0.0001913,2]
[329204804,1718179846987,-152.89,0.00019168,2]
[329204806,1718179847021,-98529.78152016,0.00019175,2]
[329204809,1718179847050,-500.0,0.00019178,2]
[329204811,1718179847062,-500.0,0.00019178,2]
[329204813,1718179847079,-202.63571343,0.00019178,2]
[329204814,1718179847095,-500.0,0.00019178,2]
[329204816,1718179847108,-325.29574417,0.00019178,2]
[329204817,1718179847128,-233.75695951,0.00019178,2]
[329204820,1718179847160,-500.0,0.00019178,2]
[329204824,1718179847197,-481.25660544,0.00019178,2]
[329204826,1718179847217,-500.0,0.00019178,2]
[329204828,1718179847237,-500.0,0.00019178,2]
[329204830,1718179847251,-500.0,0.00019178,2]
[329204831,1718179847268,-500.0,0.00019178,2]
[329204833,1718179847280,-500.0,0.00019178,2]
[329204839,1718179847340,-500.0,0.00019178,2]
[329204843,1718179847365,-500.0,0.00019178,2]
[329204844,1718179847376,-500.0,0.00019178,2]
[329204848,1718179847392,-778.55,0.00019178,2]
[329204853,1718179847429,-500.0,0.00019178,2]
[329204856,1718179847455,-500.0,0.00019178,2]
[329204859,1718179847471,-500.0,0.00019178,2]
[329204862,1718179847490,-500.0,0.00019178,2]
[329204865,1718179847502,-500.0,0.00019178,2]
[329204867,1718179847530,-500.0,0.00019178,2]
[329204870,1718179847544,-194.42983586,0.00019178,2]
[329204873,1718179847557,-500.0,0.00019178,2]
[329204876,1718179847567,-500.0,0.00019178,2]
[329204879,1718179847581,-500.0,0.00019178,2]
[329204882,1718179847593,-339.48661877,0.00019178,2]
[329204884,1718179847605,-469.41998675,0.00019178,2]
[329204887,1718179847621,-500.0,0.00019178,2]
[329204889,1718179847632,-500.0,0.00019178,2]
[329204891,1718179847650,-500.0,0.00019178,2]
[329204894,1718179847671,-500.0,0.00019178,2]
[329204899,1718179847691,-500.0,0.00019178,2]
[329204901,1718179847704,-500.0,0.00019178,2]
[329204904,1718179847715,-500.0,0.00019178,2]
[329204907,1718179847728,-500.0,0.00019178,2]
[329204909,1718179847739,-500.0,0.00019178,2]
[329204911,1718179847750,-500.0,0.00019178,2]
[329204914,1718179847772,-500.0,0.00019178,2]
[329204917,1718179847804,-592.95,0.00019178,2]
[329204919,1718179847821,-500.0,0.00019178,2]
[329204922,1718179847845,-500.0,0.00019178,2]
[329204926,1718179847861,-500.0,0.00019178,2]
[329204927,1718179847874,-500.0,0.00019178,2]
[329204930,1718179847890,-500.0,0.00019178,2]
[329204933,1718179847910,-764.7,0.00019178,2]
[329204939,1718179847961,-500.0,0.00019178,2]
[329204942,1718179847973,-500.0,0.00019178,2]
[329204945,1718179847986,-773.85,0.00019178,2]
[329204950,1718179848021,-500.0,0.00019178,2]
[329204953,1718179848034,-500.0,0.00019178,2]
[329204958,1718179848057,-500.0,0.00019178,2]
[329204961,1718179848080,-557.22250275,0.00019178,2]
[329204963,1718179848092,-500.0,0.00019178,2]
[329204964,1718179848105,-500.0,0.00019178,2]
[329204967,1718179848120,-500.0,0.00019178,2]
[329204969,1718179848150,-500.0,0.00019178,2]
[329204971,1718179848162,-500.0,0.00019178,2]
[329204973,1718179848174,-667.4,0.00019178,2]
[329204974,1718179848210,-500.0,0.00019178,2]
[329204976,1718179848235,-500.0,0.00019178,2]
[329204978,1718179848249,-525.29194566,0.00019178,2]
[329204980,1718179848264,-500.0,0.00019178,2]
[329204982,1718179848275,-500.0,0.00019178,2]
[329204983,1718179848285,-500.0,0.00019178,2]
[329204986,1718179848310,-500.0,0.00019178,2]
[329204987,1718179848323,-500.0,0.00019178,2]
[329204989,1718179848336,-500.0,0.00019178,2]
[329204991,1718179848346,-500.0,0.00019178,2]
[329204993,1718179848362,-500.0,0.00019178,2]
[329204995,1718179848382,-500.0,0.00019178,2]
[329204997,1718179848394,-500.0,0.00019178,2]
[329204999,1718179848424,-500.0,0.00019178,2]
[329205001,1718179848438,-500.0,0.00019178,2]
[329205003,1718179848449,-500.0,0.00019178,2]
[329205005,1718179848462,-500.0,0.00019178,2]
[329205007,1718179848477,-500.0,0.00019178,2]
[329205009,1718179848494,-716.21,0.00019178,2]
[329205012,1718179848508,-500.0,0.00019178,2]
[329205013,1718179848520,-500.0,0.00019178,2]
[329205015,1718179848535,-500.0,0.00019178,2]
[329205017,1718179848547,-446.28205397,0.00019178,2]
[329205019,1718179848557,-500.0,0.00019178,2]
[329205022,1718179848575,-500.0,0.00019178,2]
[329205025,1718179848600,-697.14,0.00019178,2]
[329205026,1718179848611,-637.98397908,0.00019178,2]
[329205028,1718179848624,-500.0,0.00019178,2]
[329205030,1718179848643,-500.0,0.00019178,2]
[329205032,1718179848657,-500.0,0.00019178,2]
[329205034,1718179848682,-500.0,0.00019178,2]
[329205036,1718179848700,-500.0,0.00019178,2]
[329205038,1718179848731,-500.0,0.00019178,2]
[329205040,1718179848746,-500.0,0.00019178,2]
[329205042,1718179848761,-500.0,0.00019178,2]
[329205044,1718179848781,-500.0,0.00019178,2]
[329205046,1718179848807,-500.0,0.00019178,2]
[329205048,1718179848820,-500.0,0.00019178,2]
[329205050,1718179848832,-500.0,0.00019178,2]
[329205052,1718179848851,-1218.09,0.00019178,2]
[329205054,1718179848862,-500.0,0.00019178,2]
[329205056,1718179848876,-500.0,0.00019178,2]
[329205058,1718179848890,-756.11,0.00019178,2]
[329205060,1718179848921,-500.0,0.00019178,2]
[329205064,1718179848955,-500.0,0.00019178,2]
[329205066,1718179848978,-651.5,0.00019178,2]
[329205068,1718179848994,-515.89376476,0.00019178,2]
[329205070,1718179849007,-500.0,0.00019178,2]